bitfinex-derivatives/quotes_ETHF0:USTF0_20240923
["timestamp","ask_amount","ask_price","bid_price","bid_amount"]
[1727096149896,0.37799,2646.0,2645.9,0.37798]
[1727096151386,0.378,2645.9,2645.8,0.378]
[1727096151790,0.37799,2646.0,2645.9,0.37799]
[1727096152991,2.4312,2646.2,2645.9,0.37799]
[1727096153189,0.37797,2646.1,2646.0,0.37797]
[1727096154890,2.4312,2646.2,2645.7,1.71476]
[1727096155091,0.37798,2646.1,2646.0,0.37797]
[1727096155895,0.37798,2646.1,2645.7,1.71476]
[1727096155896,0.37799,2646.0,2645.9,0.37798]
[1727096158692,0.37801,2645.9,2645.7,0.7697]
[1727096158893,0.37801,2645.9,2645.8,0.37801]
[1727096160391,0.94493,2646.1,2645.7,0.7697]
[1727096160392,0.37799,2646.0,2645.9,0.37799]
[1727096162488,0.37799,2646.0,2645.7,0.7697]
[1727096162489,0.37801,2645.8,2645.7,0.7697]
[1727096162698,1.32304,2645.8,2645.7,0.375]
[1727096162898,3.39304,2645.8,2645.7,0.375]
[1727096163499,3.76934,2645.8,2645.7,0.375]
[1727096166395,0.37809,2645.2,2645.1,0.088]
[1727096166598,2.44809,2645.2,2645.1,0.3763]
[1727096166808,2.07,2645.2,2645.1,0.75441]
[1727096167406,2.44809,2645.2,2645.1,0.3763]
[1727096169706,3.01524,2645.2,2644.7,3.98156]
[1727096170025,2.44815,2644.9,2644.8,0.3598]
[1727096170305,2.07,2644.9,2644.8,0.73795]
[1727096173008,2.44814,2644.9,2644.8,0.3598]
[1727096173208,2.44814,2644.9,2644.3,3.2078]
[1727096173209,7.16005,2644.9,2644.4,0.3782]
[1727096173512,2.07,2644.6,2644.5,0.37819]
[1727096177508,1.3237,2644.5,2644.4,1.1572]
[1727096177713,1.3237,2644.5,2644.4,0.7879]
[1727096177714,3.7557,2644.5,2644.4,0.7879]
[1727096178010,2.8102,2644.5,2644.4,0.7879]
[1727096178710,3.7557,2644.5,2644.4,0.3939]
[1727096179313,2.8102,2644.5,2644.4,0.3939]
[1727096179706,2.8102,2644.5,2644.4,0.7761]
[1727096180811,0.37817,2644.7,2644.4,0.7761]
[1727096181022,0.37818,2644.6,2644.5,0.3965]
[1727096181316,0.75108,2644.6,2644.5,0.3965]
[1727096181908,0.3729,2644.6,2644.5,0.3965]
[1727096182115,2.07,2644.7,2644.5,0.77469]
[1727096182327,0.37818,2644.6,2644.5,0.3965]
[1727096182510,2.44817,2644.7,2644.5,0.3965]
[1727096183117,2.07,2644.7,2644.5,0.77469]
[1727096184007,2.07,2644.9,2644.5,0.3965]
[1727096184208,2.44814,2644.9,2644.6,0.37817]
[1727096185014,2.07,2644.9,2644.5,0.3965]
[1727096185214,2.44817,2644.7,2644.5,0.3965]
[1727096185921,2.07,2644.7,2644.1,0.37824]
[1727096186110,4.54872,2644.8,2644.2,1.53204]
[1727096186111,2.44821,2644.5,2644.2,1.53204]
[1727096186815,2.4482,2644.5,2644.2,1.53203]
[1727096187926,0.37821,2644.4,2644.2,1.53203]
[1727096188216,2.4482,2644.5,2644.2,1.1538]
[1727096188422,0.37821,2644.4,2644.2,1.53203]
[1727096189119,2.4482,2644.5,2644.3,0.37822]
[1727096189617,0.3782,2644.5,2644.3,0.37822]
[1727096190523,0.37821,2644.4,2644.2,1.53203]
[1727096192013,0.37821,2644.4,2644.3,0.37822]
[1727096192615,0.37821,2644.4,2644.2,1.1538]
[1727096193116,3.01544,2644.7,2644.3,0.37822]
[1727096193416,0.37821,2644.5,2644.3,0.37822]
[1727096193613,0.37821,2644.4,2644.3,0.37822]
[1727096194118,0.37822,2644.3,2644.2,1.53203]
[1727096194326,0.37822,2644.3,2644.2,1.1538]
[1727096194515,0.75322,2644.3,2644.2,1.1538]
[1727096194712,2.82322,2644.3,2644.2,1.53204]
[1727096195024,2.82322,2644.3,2644.2,1.15534]
[1727096195217,2.445,2644.3,2644.2,1.15534]
[1727096196021,2.07,2644.5,2644.2,0.7771]
[1727096196326,0.37821,2644.4,2644.3,0.37822]
[1727096196715,2.8241,2644.5,2644.4,0.37821]
[1727096196917,3.2078,2644.8,2644.6,0.37817]
[1727096197121,3.58596,2644.8,2644.7,1.1247]
[1727096198810,3.2078,2644.8,2644.7,1.1247]
[1727096199015,3.58595,2644.8,2644.7,1.1247]
[1727096199724,3.58595,2644.8,2644.7,1.50287]
[1727096200225,3.2078,2644.8,2644.7,1.50287]
[1727096202625,0.3596,2645.2,2645.1,0.37811]
[1727096202823,2.07,2645.3,2645.2,0.37809]
[1727096203018,2.07,2645.5,2645.3,0.37808]
[1727096203224,2.07,2645.5,2645.4,1.1189]
[1727096203524,2.07,2645.5,2645.4,1.49697]
[1727096203722,2.44805,2645.5,2645.4,1.1189]
[1727096206018,2.44805,2645.5,2645.4,0.3617]
[1727096207529,0.37807,2645.4,2645.2,0.37809]
[1727096207830,2.07,2645.3,2645.2,0.37809]
[1727096208922,0.75664,2645.6,2645.1,0.94528]
[1727096209225,0.3786,2645.6,2645.5,0.37805]
[1727096209426,2.44803,2645.7,2645.5,0.37805]
[1727096209623,2.44803,2645.7,2645.6,0.7351]
[1727096209824,2.44803,2645.7,2645.6,1.1049]
[1727096210325,2.07,2645.7,2645.6,1.1049]
[1727096210523,2.44802,2645.7,2645.6,1.1049]
[1727096210720,0.74922,2645.8,2645.6,1.1049]
[1727096210919,0.74922,2645.8,2645.7,0.37802]
[1727096211429,3.58579,2646.0,2645.8,0.37801]
[1727096212229,3.58579,2646.0,2645.8,0.378]
[1727096213424,2.448,2645.9,2645.6,1.1049]
[1727096213631,2.07,2645.9,2645.8,0.37801]
[1727096214838,2.44799,2645.9,2645.8,0.37801]
[1727096216134,0.37801,2645.8,2645.7,0.37802]
[1727096216526,2.07,2645.9,2645.6,1.1049]
[1727096216726,3.5749,2646.1,2645.6,0.7403]
[1727096216727,2.80752,2645.7,2645.6,0.7403]
[1727096221135,0.3595,2645.7,2645.6,1.11834]
[1727096221539,0.73752,2645.7,2645.6,1.11834]
[1727096224641,0.37802,2645.7,2645.6,1.11834]
[1727096227546,2.07,2645.9,2645.7,0.37802]
[1727096227733,0.37796,2646.2,2646.1,0.37795]
[1727096228243,2.467,2646.3,2646.2,0.37795]
[1727096228538,2.84494,2646.3,2646.2,0.37795]
[1727096231338,3.01476,2646.6,2646.1,0.3735]
[1727096231535,0.37792,2646.5,2646.4,0.37792]
[1727096231732,2.84641,2646.6,2646.5,0.37791]
[1727096231933,0.37792,2646.5,2646.4,0.37791]
[1727096232643,0.37792,2646.4,2646.3,0.76673]
[1727096233042,0.37792,2646.4,2646.3,0.76674]
[1727096237145,0.37792,2646.5,2646.4,0.37791]
[1727096237645,2.8464,2646.6,2646.5,0.37791]
[1727096238040,0.37792,2646.5,2646.4,0.37791]
[1727096239143,0.37792,2646.5,2646.3,0.3888]
[1727096239144,2.8464,2646.6,2646.5,0.37791]
[1727096240741,2.8464,2646.6,2646.3,1.33365]
[1727096240742,0.37789,2646.7,2646.6,0.37789]
[1727096241143,2.44788,2646.8,2646.7,0.37788]
[1727096241948,0.37788,2646.8,2646.7,0.37788]
[1727096242342,0.3741,2646.9,2646.8,0.37787]
[1727096242343,0.75196,2646.9,2646.8,0.37787]
[1727096242544,4.53036,2646.9,2646.8,0.37787]
[1727096243345,0.37786,2646.9,2646.8,0.37787]
[1727096244053,2.07,2647.0,2646.6,0.3742]
[1727096244239,0.3778,2647.1,2646.7,0.94471]
[1727096244441,0.37785,2646.9,2646.8,0.76786]
[1727096245953,1.32249,2646.9,2646.8,0.39]
[1727096246152,1.32249,2646.9,2646.8,0.76787]
[1727096246646,1.32249,2646.9,2646.8,0.39]
[1727096246951,2.07,2647.0,2646.6,0.75209]
[1727096246952,0.37788,2646.7,2646.6,0.75209]
[1727096247541,0.37786,2647.0,2646.9,0.37784]
[1727096248251,0.94443,2647.5,2646.8,0.94466]
[1727096248445,0.37781,2647.2,2647.1,0.37782]
[1727096249155,0.3614,2647.5,2647.1,0.3683]
[1727096249341,0.3614,2647.5,2647.3,0.37778]
[1727096249548,0.73917,2647.5,2647.4,0.3709]
[1727096249743,0.73917,2647.5,2647.4,1.13148]
[1727096249953,3.58555,2647.7,2647.5,0.37777]
[1727096250149,3.2078,2647.7,2647.6,0.74605]
[1727096250549,3.58554,2647.7,2647.6,0.3683]
[1727096251143,5.65554,2647.7,2647.6,0.3683]
[1727096253049,0.37777,2647.5,2647.4,0.7537]
[1727096253260,0.37777,2647.5,2647.4,1.1337]
[1727096253457,0.37777,2647.5,2647.4,1.51148]
[1727096253648,0.37777,2647.5,2647.4,1.1337]
[1727096254045,5.2778,2647.7,2647.4,1.1337]
[1727096254358,0.37775,2647.7,2647.5,0.37776]
[1727096254855,0.37775,2647.7,2647.6,0.37775]
[1727096255759,0.3597,2647.8,2647.6,0.37774]
[1727096256059,0.37774,2647.7,2647.6,0.37774]
[1727096256351,4.15206,2648.0,2647.5,0.94441]
[1727096256352,3.5855,2648.0,2647.5,0.94441]
[1727096256658,3.5855,2648.0,2647.9,0.37771]
[1727096256850,3.2078,2648.0,2647.8,0.37771]
[1727096257157,0.37771,2647.9,2647.8,0.37771]
[1727096257463,0.37773,2647.8,2647.6,0.37774]
[1727096257651,0.37771,2647.9,2647.8,0.37772]
[1727096258257,0.37771,2647.9,2647.7,0.37773]
[1727096258958,0.94425,2648.0,2647.6,0.37775]
[1727096259155,6.22202,2648.1,2647.4,3.2078]
[1727096259348,0.3965,2647.9,2647.4,3.2078]
[1727096259554,0.77422,2647.9,2647.7,0.37773]
[1727096259955,0.37772,2647.8,2647.7,0.37773]
[1727096260156,0.37771,2647.9,2647.8,0.37772]
[1727096260455,6.22202,2648.1,2647.7,0.37773]
[1727096260456,0.37772,2647.8,2647.7,0.37773]
[1727096260658,3.01422,2648.1,2647.4,4.15225]
[1727096260659,0.37772,2647.9,2647.4,4.15225]
[1727096260960,0.94425,2648.0,2647.4,3.2078]
[1727096261155,0.37773,2647.8,2647.7,0.37773]
[1727096261353,0.94425,2648.0,2647.4,4.15225]
[1727096261651,0.94425,2648.0,2647.7,0.37773]
[1727096261859,0.37772,2647.8,2647.7,0.37773]
[1727096262961,0.37772,2647.8,2647.7,0.37774]
[1727096263154,0.94425,2648.0,2647.6,0.37774]
[1727096263354,0.94425,2648.0,2647.4,3.2078]
[1727096263556,0.94425,2648.0,2647.6,0.37775]
[1727096263557,0.37775,2647.7,2647.6,0.37775]
[1727096264150,0.37775,2647.7,2647.6,4.15455]
[1727096264347,0.37775,2647.7,2647.6,0.37775]
[1727096264550,0.3778,2647.3,2647.2,0.3778]
[1727096264757,3.01435,2647.7,2647.1,3.58562]
[1727096264758,2.07,2647.4,2647.1,3.58562]
[1727096264955,0.391,2647.3,2647.1,3.58562]
[1727096265162,0.76881,2647.3,2647.1,0.37781]
[1727096265661,0.391,2647.3,2647.1,0.37781]
[1727096265863,0.76881,2647.3,2647.2,0.37781]
[1727096266054,0.7688,2647.3,2647.2,0.37781]
[1727096266957,0.7688,2647.3,2647.1,0.37781]
[1727096267150,0.37782,2647.2,2646.7,3.2078]
[1727096267358,0.37782,2647.2,2646.9,0.37784]
[1727096267661,0.37782,2647.2,2646.8,0.37786]
[1727096267662,0.37785,2647.0,2646.8,0.37786]
[1727096267964,0.37785,2647.0,2646.8,0.74706]
[1727096268165,0.37783,2647.1,2646.9,0.37785]
[1727096268361,0.37784,2647.0,2646.9,0.37785]
[1727096269861,0.37783,2647.1,2646.9,0.37785]
[1727096270049,1.33551,2647.3,2646.9,0.37785]
[1727096270255,0.37784,2647.0,2646.9,0.37785]
[1727096270562,1.33551,2647.3,2646.9,0.37785]
[1727096270763,0.37784,2647.0,2646.9,0.37785]
[1727096270961,0.37783,2647.1,2647.0,0.37784]
[1727096271261,0.391,2647.3,2647.1,0.37782]
[1727096271564,0.37782,2647.2,2647.1,0.37782]
[1727096273354,0.9444,2647.6,2646.9,0.94464]
[1727096273555,0.37778,2647.5,2647.1,0.94457]
[1727096273762,0.37778,2647.5,2647.4,0.37778]
[1727096275577,0.37778,2647.5,2647.4,0.74228]
[1727096277572,0.74986,2647.6,2647.5,0.37777]
[1727096277875,0.37775,2647.7,2647.6,0.37775]
[1727096278073,0.37773,2647.8,2647.7,0.37774]
[1727096278279,0.37772,2647.9,2647.8,0.37772]
[1727096278474,0.37773,2647.8,2647.7,0.37773]
[1727096278778,0.37772,2647.9,2647.8,0.37772]
[1727096279373,0.94421,2648.1,2647.5,3.01442]
[1727096279572,0.37773,2647.8,2647.7,0.37773]
[1727096280679,0.37774,2647.7,2647.6,0.37774]
[1727096281373,0.77493,2647.8,2647.3,6.60379]
[1727096281580,0.37774,2647.7,2647.6,0.37774]
[1727096281976,0.37774,2647.7,2647.3,6.60379]
[1727096282177,0.3972,2647.8,2647.3,6.60379]
[1727096282474,0.3777,2648.0,2647.9,0.3777]
[1727096282674,4.15198,2648.2,2647.8,0.37771]
[1727096282675,0.37771,2647.9,2647.8,0.37771]
[1727096282880,0.3777,2648.1,2647.6,0.94438]
[1727096283082,0.3777,2648.1,2648.0,0.37769]
[1727096283582,0.37771,2648.0,2647.9,0.3777]
[1727096283778,0.77488,2648.2,2648.1,0.37768]
[1727096283982,0.3972,2648.2,2648.1,0.37768]
[1727096284176,3.01406,2648.6,2648.2,0.37767]
[1727096284384,0.37764,2648.4,2648.3,0.3966]
[1727096285370,9.0538,2648.4,2647.7,0.3851]
[1727096285575,0.37,2648.5,2647.9,1.34087]
[1727096285776,0.37,2648.5,2648.4,0.37764]
[1727096285976,0.74763,2648.5,2648.3,0.37764]
[1727096286377,0.74763,2648.5,2648.4,0.77424]
[1727096287391,0.37,2648.5,2648.4,0.77424]
[1727096287573,0.37762,2648.6,2648.5,0.37762]
[1727096287783,0.37762,2648.6,2648.5,0.3743]
[1727096289981,0.37762,2648.5,2648.4,0.3966]
[1727096290780,0.37762,2648.5,2648.4,0.77424]
[1727096291385,0.37762,2648.5,2648.4,0.3966]
[1727096292593,0.94407,2648.6,2648.4,0.3966]
[1727096292594,0.37761,2648.6,2648.5,0.37761]
[1727096293091,0.37761,2648.6,2648.5,0.77301]
[1727096293587,0.37761,2648.6,2648.5,0.3954]
[1727096293788,0.37762,2648.5,2648.4,0.3966]
[1727096293981,1.32169,2648.5,2648.4,0.3966]
[1727096295586,1.32169,2648.5,2648.1,0.37767]
[1727096295587,0.94411,2648.4,2648.1,0.37767]
[1727096295793,0.37768,2648.2,2648.1,1.11467]
[1727096295989,0.77266,2648.3,2648.2,0.37767]
[1727096297983,0.77266,2648.3,2648.1,1.11467]
[1727096297984,0.37767,2648.2,2648.1,1.11467]
[1727096298293,0.77266,2648.3,2648.2,0.37767]
[1727096299584,0.395,2648.3,2648.2,0.37767]
[1727096299891,0.37765,2648.4,2648.3,0.37765]
[1727096300095,0.3787,2648.7,2648.4,0.37763]
[1727096300096,0.37763,2648.5,2648.4,0.37763]
[1727096300992,0.37764,2648.4,2648.3,0.37764]
[1727096301390,0.37767,2648.2,2648.1,0.74557]
[1727096301586,0.37767,2648.2,2648.1,0.74558]
[1727096301784,0.37767,2648.2,2648.1,0.3679]
[1727096302494,0.76986,2648.3,2648.1,0.74557]
[1727096302688,0.37767,2648.2,2648.1,0.3679]
[1727096303296,0.37767,2648.2,2648.1,0.74558]
[1727096303495,0.37767,2648.2,2648.1,0.3679]
[1727096307497,0.37767,2648.2,2648.1,0.74558]
[1727096307695,0.76986,2648.3,2648.1,0.74558]
[1727096308001,0.37767,2648.2,2648.1,0.74557]
[1727096308699,0.37767,2648.2,2648.1,0.3679]
[1727096314001,0.76986,2648.3,2648.2,0.37767]
[1727096314200,0.94408,2648.5,2648.1,1.3179]
[1727096314201,0.37764,2648.4,2648.1,1.3179]
[1727096314397,0.37764,2648.4,2648.3,0.37764]
[1727096314901,1.89401,2648.7,2648.6,0.3776]
[1727096314902,0.3776,2648.7,2648.6,0.3776]
[1727096315100,1.34207,2648.8,2648.5,0.37761]
[1727096315101,0.37761,2648.6,2648.5,0.37761]
[1727096315705,1.34207,2648.8,2648.5,1.32762]
[1727096316003,0.37761,2648.7,2648.6,0.77361]
[1727096316406,0.37759,2648.8,2648.6,0.77361]
[1727096316605,0.3776,2648.7,2648.6,0.77361]
[1727096316996,0.37759,2648.8,2648.7,0.3776]
[1727096317202,3.58538,2648.9,2648.7,0.37758]
[1727096317413,0.37758,2648.8,2648.7,0.37758]
[1727096320106,1.34201,2649.0,2648.8,0.37757]
[1727096320107,0.37757,2648.9,2648.8,0.37757]
[1727096320810,0.37759,2648.8,2648.7,0.37759]
[1727096321206,0.37757,2648.9,2648.8,0.37757]
[1727096323111,4.15165,2649.2,2648.7,2.06]
[1727096323306,4.15165,2649.2,2649.0,0.37754]
[1727096323307,0.37754,2649.1,2649.0,0.37754]
[1727096323502,3.58534,2649.2,2649.1,0.37754]
[1727096323709,0.37754,2649.1,2649.0,0.37755]
[1727096324212,3.58533,2649.2,2649.1,0.37754]
[1727096324417,0.37753,2649.2,2649.1,0.37754]
[1727096324601,0.75452,2649.3,2649.2,0.37752]
[1727096325008,0.37753,2649.2,2649.1,0.37753]
[1727096325718,0.94375,2649.4,2648.9,2.06]
[1727096325911,0.37752,2649.2,2649.1,0.37753]
[1727096326117,0.94375,2649.4,2649.1,0.37754]
[1727096326419,0.37752,2649.2,2649.1,0.37754]
[1727096327719,0.37751,2649.3,2649.2,0.37752]
[1727096328013,0.3775,2649.4,2649.3,0.37751]
[1727096328220,0.3775,2649.4,2649.2,0.37751]
[1727096328524,0.3775,2649.4,2649.3,0.77101]
[1727096329312,0.3775,2649.4,2649.3,0.3935]
[1727096329719,0.3775,2649.4,2649.3,0.77101]
[1727096330613,1.34093,2649.5,2648.9,6.21172]
[1727096330614,0.37754,2649.1,2648.9,3.2078]
[1727096330910,0.37754,2649.1,2649.0,0.3618]
[1727096331118,1.32139,2649.1,2649.0,0.3618]
[1727096331414,2.26524,2649.1,2649.0,0.3618]
[1727096331619,1.32144,2649.0,2648.9,3.2078]
[1727096332313,1.32144,2649.0,2648.7,0.37758]
[1727096332614,1.32144,2649.0,2648.5,1.30586]
[1727096332615,0.37758,2648.9,2648.8,0.37758]
[1727096332807,0.94389,2649.0,2648.8,0.37758]
[1727096333008,0.94389,2649.0,2648.5,1.30586]
[1727096333213,0.94389,2649.0,2648.7,0.37759]
[1727096333412,0.37758,2648.9,2648.7,0.37759]
[1727096333612,0.37758,2648.9,2648.5,1.30586]
[1727096333920,0.37758,2648.8,2648.7,0.37759]
[1727096334711,0.37758,2648.9,2648.7,0.37759]
[1727096335825,0.37758,2648.9,2648.8,0.369]
[1727096337721,0.37756,2649.0,2648.8,0.74657]
[1727096337922,0.37757,2648.9,2648.8,0.369]
[1727096338116,0.37757,2648.9,2648.8,0.74658]
[1727096338423,0.37757,2648.9,2648.8,0.369]
[1727096342518,0.37757,2648.9,2648.8,0.74658]
[1727096342826,0.37757,2648.9,2648.8,0.369]
[1727096344528,0.37758,2648.8,2648.7,0.95]
[1727096345622,0.76708,2648.8,2648.7,1.3276]
[1727096345825,0.76708,2648.8,2648.7,0.95]
[1727096346227,0.76708,2648.8,2648.7,1.3276]
[1727096346621,0.76708,2648.8,2648.7,0.95]
[1727096346928,0.3895,2648.8,2648.7,1.3276]
[1727096348430,0.76708,2648.8,2648.7,1.3276]
[1727096348631,0.3895,2648.8,2648.7,1.3276]
[1727096348830,0.3776,2648.7,2648.6,0.742]
[1727096349228,0.76709,2648.8,2648.7,0.3776]
[1727096349732,0.3776,2648.7,2648.6,0.742]
[1727096349928,1.3216,2648.7,2648.6,0.742]
[1727096350324,0.3776,2648.7,2648.6,0.742]
[1727096352235,1.3216,2648.7,2648.6,0.742]
[1727096352431,0.94403,2648.6,2648.0,4.56814384]
[1727096352737,0.37766,2648.3,2648.1,1.52958]
[1727096353141,0.37765,2648.4,2648.1,2.1019]
[1727096353330,0.37763,2648.5,2648.3,0.95]
[1727096353530,0.37764,2648.4,2648.3,0.95]
[1727096355931,0.37761,2648.6,2648.4,0.37763]
[1727096356137,0.37761,2648.6,2648.5,1.3113]
[1727096358634,0.37761,2648.6,2648.5,1.68892]
[1727096358829,0.37761,2648.6,2648.5,0.3613]
[1727096360043,1.32164,2648.6,2648.5,0.3613]
[1727096360234,0.94407,2648.5,2648.2,0.95]
[1727096360539,0.37765,2648.4,2648.2,1.72356]
[1727096360740,0.37765,2648.3,2648.2,1.72356]
[1727096362547,0.94403,2648.6,2648.2,1.3459]
[1727096362836,0.37761,2648.6,2648.4,1.32764]
[1727096363139,0.94407,2648.5,2648.2,0.77356]
[1727096363344,0.94407,2648.5,2648.2,1.72356]
[1727096363542,0.37765,2648.3,2648.2,1.72356]
[1727096363734,0.3898,2648.4,2648.2,1.72356]
[1727096363936,0.37765,2648.3,2648.2,1.72356]
[1727096364129,0.3898,2648.4,2648.2,1.3459]
[1727096364337,0.76744,2648.4,2648.2,1.72356]
[1727096366040,0.3898,2648.4,2648.2,1.72356]
[1727096366237,0.37764,2648.4,2648.2,1.3459]
[1727096366439,0.37764,2648.4,2648.2,1.72356]
[1727096366647,0.37765,2648.3,2648.2,1.3459]
[1727096367234,1.32184,2648.2,2648.1,0.7595]
[1727096367452,1.32184,2648.2,2648.1,0.3848]
[1727096367453,1.69874,2648.2,2648.1,0.3848]
[1727096367946,0.75457,2648.2,2648.1,0.3848]
[1727096368147,1.69874,2648.2,2648.1,0.3848]
[1727096370146,0.75457,2648.2,2648.1,0.3848]
[1727096370348,1.69874,2648.2,2648.1,0.3848]
[1727096370844,0.3777,2648.0,2647.9,0.7835]
[1727096371043,0.37771,2647.9,2647.8,0.3635]
[1727096371941,1.32199,2647.9,2647.8,0.3635]
[1727096372645,0.37771,2647.9,2647.8,0.3635]
[1727096381551,1.32199,2647.9,2647.8,0.3635]
[1727096382248,0.37771,2647.9,2647.8,0.3635]
[1727096385152,0.37771,2647.9,2647.8,0.74122]
[1727096385547,0.37771,2647.9,2647.8,0.3635]
[1727096385747,1.32199,2647.9,2647.8,0.3635]
[1727096393255,2.27199,2647.9,2647.8,0.3635]
[1727096395765,1.32199,2647.9,2647.8,0.3635]
[1727096401665,1.70439,2647.9,2647.8,0.3635]
[1727096404784,1.32199,2647.9,2647.8,0.3635]
[1727096407365,3.45159806,2648.8,2648.0,0.94421]
[1727096407569,3.2078,2648.9,2648.6,0.95]
[1727096407868,3.2078,2648.9,2648.8,1.32758]
[1727096408058,0.37752,2649.3,2648.8,0.95]
[1727096408258,0.3775,2649.4,2649.2,0.37752]
[1727096408470,0.3775,2649.4,2649.3,0.3694]
[1727096410069,0.37755,2649.0,2648.8,0.37757]
[1727096410276,0.37757,2648.9,2648.8,0.3755]
[1727096410463,1.32149,2648.9,2648.8,0.3755]
[1727096410663,1.69849,2648.9,2648.8,0.3755]
[1727096410968,0.75457,2648.9,2648.8,0.3755]
[1727096411264,0.95,2649.1,2648.8,0.3755]
[1727096411462,0.37756,2649.0,2648.8,0.3755]
[1727096411672,0.37757,2648.9,2648.8,0.3755]
[1727096412175,0.95,2649.1,2648.8,0.3755]
[1727096412469,0.37757,2648.9,2648.8,0.3755]
[1727096414861,0.37756,2649.0,2648.8,0.3755]
[1727096415064,0.37754,2649.1,2648.9,0.3947]
[1727096415260,4.15155,2649.4,2649.0,0.37755]
[1727096415464,0.37754,2649.2,2649.0,0.37755]
[1727096416560,0.37754,2649.1,2649.0,0.37755]
[1727096417466,0.37753,2649.2,2649.0,0.37755]
[1727096417770,3.2078,2649.4,2649.0,0.95]
[1727096417968,3.2078,2649.4,2649.2,0.95]
[1727096418161,0.94361,2649.8,2649.2,0.95]
[1727096418162,0.37745,2649.8,2649.3,4.7244]
[1727096418364,0.37742,2649.9,2649.6,0.95]
[1727096418566,0.37744,2649.8,2649.7,0.37744]
[1727096418764,0.94355,2650.0,2649.5,0.95]
[1727096418972,0.37745,2649.8,2649.7,0.37745]
[1727096420175,0.3771,2650.1,2649.8,0.37743]
[1727096420371,0.37742,2650.0,2649.9,0.37742]
[1727096420564,0.3771,2650.1,2649.9,0.37742]
[1727096420768,0.3771,2650.1,2649.9,0.37741]
[1727096420769,0.75451,2650.1,2649.9,0.37741]
[1727096421073,0.37742,2650.0,2649.8,0.37743]
[1727096421268,0.3771,2650.1,2649.6,0.388]
[1727096421461,0.3771,2650.1,2649.5,3.2078]
[1727096421462,0.37747,2649.6,2649.5,3.2078]
[1727096421663,1.32115,2649.6,2649.5,3.2078]
[1727096421865,0.37751,2649.3,2649.2,3.2078]
[1727096422063,0.37751,2649.3,2649.1,0.388]
[1727096422064,0.37752,2649.2,2649.1,0.388]
[1727096423077,0.3643,2649.5,2649.2,0.37752]
[1727096423266,0.3643,2649.5,2649.1,6.2224]
[1727096423267,0.3643,2649.5,2649.4,0.3775]
[1727096423867,0.37748,2649.5,2649.4,0.3775]
[1727096424273,0.3713,2649.8,2649.5,0.37748]
[1727096424569,0.37745,2649.7,2649.5,0.37748]
[1727096425273,0.3713,2649.8,2649.5,0.37748]
[1727096425274,0.37747,2649.6,2649.5,0.37748]
[1727096425673,0.37747,2649.6,2649.4,0.37749]
[1727096425860,0.37747,2649.6,2649.5,0.37748]
[1727096426265,3.2078,2650.1,2649.5,5.2678]
[1727096426472,1.31485,2650.0,2649.5,3.2078]
[1727096426676,0.94357,2649.9,2649.5,3.58527]
[1727096426865,0.94357,2649.9,2649.6,0.37746]
[1727096427066,0.37745,2649.8,2649.3,3.00377]
[1727096427271,0.37745,2649.8,2649.7,0.37745]
[1727096428867,0.37745,2649.8,2649.6,0.37745]
[1727096429177,0.37745,2649.8,2649.7,0.37745]
[1727096431173,0.37745,2649.8,2649.4,0.94374]
[1727096431174,0.3713,2650.0,2649.6,2.06]
[1727096431375,0.74871,2650.0,2649.9,0.37742]
[1727096431770,0.3713,2650.0,2649.9,0.37742]
[1727096433376,0.74871,2650.0,2649.9,0.37742]
[1727096433778,0.3713,2650.0,2649.9,0.37742]
[1727096434081,0.74871,2650.0,2649.9,0.37742]
[1727096435677,0.74871,2650.0,2649.9,0.74302]
[1727096439576,0.3713,2650.0,2649.9,0.74302]
[1727096440284,0.3774,2650.1,2650.0,0.3774]
[1727096440483,0.37739,2650.2,2650.1,0.37739]
[1727096441075,0.3774,2650.1,2650.0,0.3774]
[1727096441482,0.37741,2650.0,2649.9,0.3656]
[1727096441697,0.94357,2649.9,2649.4,5.2678]
[1727096441983,0.37747,2649.7,2649.6,0.37746]
[1727096442175,0.37747,2649.6,2649.5,0.3785]
[1727096442376,0.3775,2649.4,2649.3,0.3623]
[1727096442575,1.32125,2649.4,2649.3,0.3623]
[1727096442787,1.32125,2649.4,2649.1,0.3785]
[1727096442788,0.37752,2649.2,2649.1,0.3785]
[1727096442978,0.37754,2649.1,2649.0,0.3892]
[1727096443172,1.73,2649.3,2648.7,2.06]
[1727096443384,0.37758,2648.8,2648.6,0.3785]
[1727096443576,0.37759,2648.8,2648.6,0.3785]
[1727096444083,0.94385,2649.1,2648.6,0.3785]
[1727096444084,3.2078,2649.1,2648.6,0.3785]
[1727096444283,0.37754,2649.1,2648.9,2.06]
[1727096444476,0.37755,2649.0,2648.9,2.06]
[1727096445580,0.3914,2649.2,2648.7,0.37759]
[1727096445581,0.37755,2649.1,2648.8,0.37757]
[1727096445885,0.3914,2649.2,2648.8,0.37757]
[1727096445886,0.37755,2649.0,2648.8,0.37757]
[1727096447488,0.37753,2649.2,2648.9,2.43756]
[1727096447682,0.7862,2649.3,2648.9,2.06]
[1727096447683,0.37755,2649.1,2648.9,2.06]
[1727096447988,1.73001,2649.3,2648.7,5.2678]
[1727096448188,0.37757,2648.9,2648.7,5.2678]
[1727096448396,1.33952,2649.2,2648.8,0.37758]